bitfinex/quotes_ETHUSD_20220119
["timestamp","ask_amount","ask_price","bid_price","bid_amount"]
[1642595459703,3.2,3127.0,3126.8,1.10475911]
[1642595459902,3.2,3127.0,3126.9,2.50454738]
[1642595461805,3.2,3127.0,3126.9,5.13291386]
[1642595462005,3.2,3127.0,3126.9,11.95271465]
[1642595463061,3.2,3127.0,3126.9,9.32434817]
[1642595463260,3.2,3127.0,3126.9,10.12396817]
[1642595463965,3.2,3127.0,3126.9,12.76017363]
[1642595464461,3.2,3127.0,3126.9,8.66017363]
[1642595464661,3.2,3127.0,3126.9,6.02396817]
[1642595464860,3.2,3127.0,3126.9,11.08529218]
[1642595466706,3.2,3127.0,3126.9,12.67331218]
[1642595466905,3.2,3127.0,3126.9,13.13431218]
[1642595466906,0.75301384,3127.0,3126.9,13.13431218]
[1642595467105,6.2531,3128.6,3127.5,0.7995]
[1642595467307,6.2531,3128.6,3127.6,2.71980079]
[1642595467508,0.00454739,3128.5,3127.6,3.01980079]
[1642595467808,0.00454739,3128.5,3127.6,0.3]
[1642595468007,0.00397897,3128.4,3127.5,1.8989933]
[1642595468208,0.00397897,3128.4,3127.7,1.24869285]
[1642595468409,0.00341054,3128.3,3127.8,0.79949]
[1642595468809,0.00284212,3128.2,3127.8,0.79949]
[1642595469208,0.0022737,3128.1,3127.8,0.79949]
[1642595469651,0.00170527,3128.0,3127.8,0.79949]
[1642595470052,0.00113685,3127.9,3127.8,1.09949]
[1642595470254,23.00423617,3129.1,3127.8,3.59949]
[1642595470255,10.04205713,3129.1,3127.8,3.59949]
[1642595470454,0.461,3129.0,3127.8,3.59949]
[1642595470656,0.00511581,3128.8,3127.8,3.59949]
[1642595470955,0.00454739,3128.7,3127.8,3.59949]
[1642595471355,0.79948,3128.9,3127.8,3.59949]
[1642595471356,0.00397897,3128.6,3127.8,3.59949]
[1642595471659,0.00341054,3128.5,3127.8,3.59949]
[1642595471861,0.00341054,3128.5,3127.8,3.29949]
[1642595472055,0.00284212,3128.4,3127.8,0.79949]
[1642595472459,0.00227369,3128.3,3127.8,0.79949]
[1642595472957,0.00170527,3128.2,3127.8,0.79949]
[1642595473418,0.00113685,3128.1,3127.8,0.79949]
[1642595474312,0.00113685,3128.1,3127.8,2.13888507]
[1642595475211,0.00113685,3128.1,3127.8,1.09949]
[1642595475409,0.00113685,3128.1,3127.8,0.79949]
[1642595476010,3.20113685,3128.1,3127.8,0.79949]
[1642595477660,3.20113685,3128.1,3127.9,4.14155059]
[1642595477860,3.20113685,3128.1,3128.0,9.25604968]
[1642595478159,3.20113685,3128.1,3128.0,13.27506961]
[1642595478958,3.20113685,3128.1,3128.0,12.27506961]
[1642595479758,3.20113685,3128.1,3128.0,11.97506961]
[1642595480558,3.20113685,3128.1,3128.0,11.97909501]
[1642595480759,3.16725528,3128.1,3128.0,5.67909501]
[1642595481207,3.16725528,3128.1,3128.0,6.67909501]
[1642595481606,2.05037741,3128.1,3128.0,12.87909501]
[1642595481808,1.207,3129.7,3128.4,0.79911]
[1642595482015,1.207,3129.7,3128.8,1.09914]
[1642595482210,0.00511581,3129.0,3128.8,1.09914]
[1642595482610,0.00454739,3128.9,3128.8,7.14914]
[1642595483311,0.00454739,3128.9,3128.8,9.86692624]
[1642595483510,0.00454739,3128.9,3128.8,12.15968631]
[1642595483710,0.00454739,3128.9,3128.8,11.36054631]
[1642595483913,0.00454739,3128.9,3128.8,10.56141631]
[1642595484109,0.00454739,3128.9,3128.8,7.84363007]
[1642595484309,0.00454739,3128.9,3128.8,10.24110717]
[1642595484953,0.00454739,3128.9,3128.7,1.59828]
[1642595485352,0.00397896,3128.8,3128.7,1.59828]
[1642595486854,3.20397896,3128.8,3128.5,1.31998529]
[1642595487059,3.20397896,3128.8,3128.3,1.59845]
[1642595487258,0.00341054,3128.7,3128.4,0.3]
[1642595487459,0.00341054,3128.7,3128.3,1.59845]
[1642595487657,0.00284212,3128.6,3128.1,1.72635]
[1642595487858,0.00284212,3128.6,3128.1,1.59855]
[1642595488160,0.00227369,3128.5,3128.2,1.31238872]
[1642595488604,0.00170527,3128.4,3128.2,1.31238872]
[1642595488805,0.00170527,3128.4,3128.2,1.61238872]
[1642595489104,0.00113684,3128.3,3128.2,1.61238872]
[1642595489505,0.00113684,3128.3,3128.2,5.26238872]
[1642595489909,0.00113684,3128.3,3128.0,0.0040254]
[1642595491210,0.09017833,3128.2,3128.0,0.0040254]
[1642595491608,0.09661837,3128.2,3128.0,0.0040254]
[1642595492659,0.7996583,3128.2,3128.0,0.0040254]
[1642595493661,5.69969,3128.1,3128.0,0.0040254]
[1642595495261,8.50402224,3128.1,3128.0,0.0040254]
[1642595495918,5.2,3128.1,3128.0,0.0040254]
[1642595496709,4.9,3128.1,3128.0,0.0040254]
[1642595497313,7.82742425,3128.1,3128.0,0.0040254]
[1642595497522,12.78842425,3128.1,3128.0,0.0040254]
[1642595500870,9.861,3128.1,3128.0,0.0040254]
[1642595501470,0.79985,3127.8,3127.0,1.48757408]
[1642595501672,3.29921838,3127.7,3127.0,1.48757408]
[1642595501872,3.29921838,3127.7,3127.1,0.00568424]
[1642595502475,0.461,3127.7,3127.1,0.00568424]
[1642595502684,0.79985,3127.5,3127.1,0.00568424]
[1642595503076,2.19502959,3127.5,3127.1,0.00568424]
[1642595503808,1.89502959,3127.5,3127.1,0.00568424]
[1642595504410,0.7998731,3127.4,3127.1,0.00568424]
[1642595504609,0.79987,3127.3,3127.1,0.00568424]
[1642595506912,0.79983,3127.5,3127.1,0.00568424]
[1642595507156,3.2,3127.3,3127.1,0.00568424]
[1642595508362,3.2,3127.3,3127.2,2.71973245]
[1642595508763,3.2,3127.3,3127.2,2.72484826]
[1642595508964,3.2,3127.3,3127.2,0.00511581]
[1642595510164,3.2,3127.3,3127.2,2.7248265]
[1642595510369,3.2,3127.3,3127.2,0.00511581]
[1642595511016,3.2,3127.3,3127.2,2.72484872]
[1642595511614,3.2,3127.3,3127.2,3.02484872]
[1642595511814,3.2,3127.3,3127.2,2.72484872]
[1642595512014,3.2,3127.3,3127.2,3.02484872]
[1642595512219,3.2,3127.3,3127.2,2.72484872]
[1642595512419,3.2,3127.3,3127.2,3.02484872]
[1642595513420,1.59934,3128.4,3127.3,3.75]
[1642595513620,0.461,3128.3,3127.3,3.75]
[1642595513823,0.461,3128.3,3127.4,0.00511581]
[1642595514322,1.89258776,3128.1,3127.4,0.00511581]
[1642595514524,0.79971,3128.0,3127.4,0.00511581]
[1642595514767,0.79971,3128.0,3127.1,0.00682108]
[1642595514967,0.79971,3128.0,3127.2,2.71971621]
[1642595515369,3.70577038,3128.0,3127.3,0.00568423]
[1642595515578,4.80549188,3128.0,3127.3,0.00568423]
[1642595515769,0.7998,3127.8,3127.1,0.00682108]
[1642595517274,1.89446928,3127.6,3127.1,0.00682108]
[1642595517475,0.79983,3127.5,3127.1,0.00682108]
[1642595519509,1.5996818,3127.5,3127.1,0.00682108]
[1642595519908,0.79983,3127.5,3127.1,0.00682108]
[1642595520714,1.89446928,3127.6,3127.1,0.00682108]
[1642595521212,0.79978,3127.7,3127.1,0.00682108]
[1642595521813,0.7998327,3127.6,3127.1,0.00682108]
[1642595522014,0.79984,3127.5,3127.1,0.00682108]
[1642595523268,2.19457131,3127.4,3127.1,0.00682108]
[1642595524669,0.79988,3127.3,3127.1,0.00682108]
[1642595524870,2.90529785,3127.2,3127.1,0.00682108]
[1642595525078,0.79988,3127.3,3127.1,0.00682108]
[1642595525669,1.5997992,3127.3,3127.1,0.00682108]
[1642595525925,6.09862044,3127.3,3127.1,0.00682108]
[1642595526210,3.1997642,3127.3,3127.1,0.00682108]
[1642595528215,1.5997992,3127.3,3127.1,0.00682108]
[1642595528615,0.3,3127.2,3127.1,0.00682108]
[1642595529761,2.5997992,3127.3,3127.1,0.00682108]
[1642595529762,0.79988,3127.3,3127.1,0.00682108]
[1642595529965,5.45,3127.2,3127.1,0.00682108]
[1642595530566,6.6,3127.1,3125.8,4.02613802]
[1642595530766,6.6,3127.1,3125.9,2.72076483]
[1642595530767,0.80007,3126.9,3125.9,2.72076483]
[1642595530968,0.461,3126.8,3126.0,2.72076483]
[1642595531162,0.3,3126.6,3126.0,2.72076483]
[1642595531362,0.761,3126.6,3126.1,0.00568423]
[1642595531563,0.461,3126.6,3126.1,0.00568423]
[1642595531962,0.461,3126.6,3125.8,2.66915054]
[1642595532162,0.461,3126.6,3125.9,2.7207173]
[1642595532566,0.461,3126.6,3126.0,0.00625265]
[1642595532767,1.26106,3126.6,3126.1,2.7207173]
[1642595532968,0.461,3126.6,3126.1,2.7207173]
[1642595533165,0.461,3126.6,3126.2,0.00511581]
[1642595533414,0.461,3126.6,3126.3,2.7207173]
[1642595533808,0.461,3126.6,3126.4,0.00397896]
[1642595534815,0.461,3126.6,3125.8,2.4419402]
[1642595535014,0.461,3126.6,3125.9,2.72062196]
[1642595535413,0.461,3126.6,3126.0,0.00625265]
[1642595535612,0.461,3126.6,3126.1,2.72062196]
[1642595536013,0.461,3126.6,3126.2,0.00511581]
[1642595536318,0.461,3126.6,3126.3,2.72062196]
[1642595536813,0.461,3126.6,3126.4,0.00397896]
[1642595537469,0.461,3126.6,3125.7,0.00795793]
[1642595537771,0.761,3126.6,3125.8,2.72079963]
[1642595537969,0.761,3126.6,3125.9,2.72079963]
[1642595538172,0.761,3126.6,3126.0,2.72079963]
[1642595538370,0.761,3126.6,3126.1,2.72079963]
[1642595538569,3.961,3126.6,3126.1,2.72648386]
[1642595538769,3.961,3126.6,3126.2,2.72591544]
[1642595538972,2.961,3126.6,3126.2,2.72591544]
[1642595539169,2.961,3126.6,3126.3,0.00454738]
[1642595539472,2.961,3126.6,3126.4,3.02058294]
[1642595539669,2.961,3126.6,3126.5,2.72058294]
[1642595539869,2.961,3126.6,3126.5,2.72399348]
[1642595540069,2.961,3126.6,3126.5,0.00341054]
[1642595540469,2.961,3126.6,3126.4,2.7245619]
[1642595540671,2.961,3126.6,3126.5,2.72058294]
[1642595540918,2.961,3126.6,3126.5,2.72399348]
[1642595541313,2.961,3126.6,3126.5,0.00341054]
[1642595545763,2.961,3126.6,3126.5,2.3966171]
[1642595545963,2.961,3126.6,3126.5,2.72399348]
[1642595546566,2.961,3126.6,3126.5,0.00341054]
[1642595548719,2.7507,3127.7,3126.5,3.9291684]
[1642595548920,1.1275,3127.7,3126.5,3.9291684]
[1642595549119,0.00170527,3127.4,3126.6,2.72329989]
[1642595549322,0.00170527,3127.4,3126.7,2.8247756]
[1642595549519,0.00113685,3127.3,3126.8,2.72045778]
[1642595549720,0.00113685,3127.3,3126.8,3.52181305]
[1642595549919,0.00284212,3127.6,3127.0,0.79966]
[1642595550318,0.0022737,3127.5,3127.0,0.79966]
[1642595550719,1.0,3128.0,3127.0,0.79966]
[1642595550720,0.00454739,3127.9,3127.0,0.79966]
[1642595551219,0.7997,3128.0,3127.0,0.79966]
[1642595551220,0.00397897,3127.8,3127.0,0.79966]
[1642595551420,1.75756139,3128.1,3127.0,2.25449517]
[1642595551720,0.00113684,3128.0,3127.1,0.00397897]
[1642595552164,0.80083684,3128.0,3126.9,0.00511581]
[1642595552368,0.80083684,3128.0,3126.8,2.41911708]
[1642595552570,0.80083684,3128.0,3126.8,0.00568424]
[1642595552768,1.39188149,3127.9,3126.9,0.00511581]
[1642595552969,0.80087804,3128.0,3126.7,0.00625266]
[1642595553170,1.80087804,3128.0,3126.7,0.00625266]
[1642595553468,2.10084684,3128.0,3126.8,0.79971]
[1642595553870,2.10084684,3128.0,3126.9,0.00511581]
[1642595554068,2.10086584,3128.0,3126.9,0.00511581]
[1642595554270,1.30113684,3128.0,3126.9,0.00511581]
[1642595554474,0.79974,3127.9,3126.8,2.41825591]
[1642595554669,0.79974,3127.9,3126.9,0.00511581]
[1642595555072,1.09974,3127.9,3126.7,0.00625266]
[1642595555273,0.7998091,3127.7,3126.7,0.00625266]
[1642595555672,0.7998,3127.6,3126.7,0.00625266]
[1642595555942,0.7998,3127.6,3126.5,3.92244352]
[1642595555943,0.7998,3127.6,3126.6,0.00682108]
[1642595556131,0.7998,3127.6,3126.7,2.7204262]
[1642595556331,0.7997657,3127.9,3126.8,2.41239221]
[1642595556531,0.00113684,3128.0,3126.8,2.42551674]
[1642595556731,0.00113684,3128.0,3126.9,0.00511581]
[1642595557135,0.00113684,3128.0,3126.7,0.80597266]
[1642595557335,0.00113684,3128.0,3126.8,2.72605632]
[1642595557536,3.41674812,3128.0,3126.8,0.00568424]
[1642595557836,2.11730802,3128.0,3126.8,0.00568424]
[1642595558037,2.81730802,3128.0,3126.8,0.00568424]
[1642595558236,2.81730802,3128.0,3126.7,0.00625266]
[1642595558436,2.81730802,3128.0,3126.8,2.72042507]
[1642595558639,0.79978,3127.7,3126.8,2.72042507]
[1642595558839,0.79978,3127.7,3126.9,0.00511581]
[1642595559439,0.79978,3127.7,3126.7,0.00625266]
[1642595559670,0.79978,3127.7,3126.8,2.72049012]
[1642595559867,0.79978,3127.7,3126.7,0.00625266]
[1642595560066,0.79978,3127.7,3126.9,0.00511581]
[1642595560275,1.26078,3127.7,3126.7,0.00625266]
[1642595560667,2.0605922,3127.7,3126.7,0.00625266]
[1642595562070,2.0605922,3127.7,3126.8,2.72048381]
[1642595562470,2.0605922,3127.7,3126.9,0.00511581]
[1642595563072,2.0605922,3127.7,3126.7,0.00625266]
[1642595563275,2.0605922,3127.7,3126.8,2.72043724]
[1642595563511,1.26078,3127.7,3126.8,2.72043724]
[1642595563712,1.26078,3127.7,3126.9,0.00511581]
[1642595564311,1.26078,3127.7,3126.8,0.00568424]
[1642595564511,1.26078,3127.7,3126.9,2.72045949]
[1642595564916,1.26078,3127.7,3127.0,0.00454739]
[1642595565114,0.461,3127.7,3127.0,2.41589951]
[1642595565313,0.461,3127.7,3127.1,2.72033379]
[1642595565514,0.461,3127.7,3127.1,2.72431276]
[1642595565712,0.461,3127.7,3127.2,0.00341054]
[1642595566112,0.461,3127.7,3126.9,2.72544049]
[1642595566312,0.461,3127.7,3127.0,2.72487207]
[1642595566516,0.461,3127.7,3127.1,2.72032468]
[1642595566715,1.26077,3127.7,3127.1,2.72430365]
[1642595566916,1.26077,3127.7,3127.2,0.00341054]
[1642595567366,1.26077,3127.7,3126.9,2.72548732]
[1642595567572,1.26077,3127.7,3127.0,0.00454739]
[1642595567866,1.26077,3127.7,3127.1,2.72038766]
[1642595568067,1.26077,3127.7,3127.0,0.00454739]
[1642595568268,1.26077,3127.7,3127.2,0.00341054]
[1642595568567,1.26077,3127.7,3126.8,2.72617518]
[1642595568568,2.060583,3127.7,3126.8,2.72617518]
[1642595568767,2.060583,3127.7,3126.9,2.72049094]
[1642595568968,2.060583,3127.7,3126.9,2.72560675]
[1642595569166,1.34422232,3127.6,3127.0,0.00454739]
[1642595569368,1.34422232,3127.6,3127.0,2.72507494]
[1642595569568,0.79982,3127.5,3126.7,0.00625266]
[1642595569770,1.70400672,3127.4,3127.1,0.00397897]
[1642595569967,1.70400672,3127.4,3126.7,0.00625266]
[1642595570172,0.79982,3127.5,3126.9,0.00511581]
[1642595570368,1.2607645,3127.9,3126.7,0.00625266]
[1642595570568,1.5607645,3127.9,3126.9,0.00511581]
[1642595570769,0.79978,3127.7,3127.0,2.72048638]
[1642595571214,0.79978,3127.7,3127.1,0.00397897]
[1642595572113,0.79978,3127.7,3126.8,0.00568424]
[1642595572318,0.79978,3127.7,3126.9,2.72040178]
[1642595572519,0.73012475,3127.7,3126.9,2.72040178]
[1642595572722,0.73012475,3127.7,3127.0,0.00454739]
[1642595573118,0.73012475,3127.7,3127.1,2.72040178]
[1642595573519,0.73012475,3127.7,3127.2,0.00341054]
[1642595574120,0.73012475,3127.7,3126.8,2.7260904]
[1642595574321,0.73012475,3127.7,3126.9,2.72552197]
[1642595574519,0.73012475,3127.7,3127.0,2.72040616]
[1642595574765,0.73012475,3127.7,3127.0,2.72495355]
[1642595574964,0.73012475,3127.7,3127.1,2.72438513]
[1642595575163,0.73012475,3127.7,3127.1,0.00397897]
[1642595575468,0.73012475,3127.7,3127.2,0.00341054]
[1642595575664,0.73012475,3127.7,3126.8,2.72608723]
[1642595575864,0.73012475,3127.7,3126.9,2.72040299]
[1642595576064,0.73012475,3127.7,3126.9,2.7255188]
[1642595576265,0.73012475,3127.7,3127.0,2.72495038]
[1642595576465,0.73012475,3127.7,3127.1,2.72040299]
[1642595576764,0.73012475,3127.7,3127.2,0.00341054]
[1642595576964,1.03012475,3127.7,3127.2,0.00341054]
[1642595577367,0.3,3127.7,3126.8,2.7260658]
[1642595577571,0.3,3127.7,3126.7,3.39667864]
[1642595577572,0.3,3127.8,3126.9,2.72549737]
[1642595577771,0.761,3127.8,3127.0,2.72038156]
[1642595577974,0.461,3127.8,3127.0,2.72492895]
[1642595578170,0.461,3127.8,3127.1,2.72436053]
[1642595578423,0.461,3127.8,3127.1,0.00397897]
[1642595578616,0.79977,3127.7,3127.2,0.00341054]
[1642595578817,0.69977,3127.7,3126.8,2.72608172]
[1642595579017,0.69977,3127.7,3126.9,2.72039748]
[1642595579317,0.69977,3127.7,3126.9,2.72551329]
[1642595579521,0.69977,3127.7,3127.0,2.72494487]
[1642595579522,0.99977,3127.7,3127.0,2.72494487]
[1642595579723,0.69977,3127.7,3127.1,2.72039748]
[1642595579922,0.69977,3127.7,3127.1,2.72437645]
[1642595580123,0.69977,3127.7,3127.2,0.00341054]
[1642595580530,0.69977,3127.7,3126.9,2.43294246]
[1642595580722,0.69977,3127.7,3127.0,2.72041407]
[1642595580922,0.69977,3127.7,3127.0,2.72496146]
[1642595581123,0.69977,3127.7,3126.7,3.28758931]
[1642595581124,0.69977,3127.7,3127.1,2.72439304]
[1642595581322,0.69977,3127.7,3127.1,0.00397897]
[1642595581522,0.69977,3127.7,3127.2,0.00341054]
[1642595581723,0.69977,3127.7,3126.8,2.72607077]
[1642595581923,0.69977,3127.7,3126.9,2.72038653]
[1642595582163,0.69977,3127.7,3126.9,2.72550234]
[1642595582367,0.69977,3127.7,3127.0,2.72493392]
[1642595582568,0.69977,3127.7,3127.1,2.72038653]
[1642595582770,0.461,3127.8,3127.1,2.7243655]
[1642595582969,0.461,3127.8,3127.2,0.00341054]
[1642595583174,0.761,3127.8,3127.2,0.00341054]
[1642595583368,0.761,3127.8,3126.8,2.726063]
[1642595583568,0.761,3127.8,3126.9,2.72549457]
[1642595583971,0.761,3127.8,3127.0,2.72492615]
[1642595584169,0.761,3127.8,3127.1,2.72037876]
[1642595584372,0.761,3127.8,3127.1,2.72435773]
[1642595584570,0.761,3127.8,3127.2,0.00341054]
[1642595584972,0.761,3127.8,3126.8,2.72605865]
[1642595585171,0.761,3127.8,3126.9,2.72549022]
[1642595585371,0.761,3127.8,3127.0,2.72037441]
[1642595585573,0.761,3127.8,3127.0,5.12313004]
[1642595585782,8.55484324,3128.0,3127.1,2.72435338]
[1642595585783,2.9,3128.0,3127.1,2.72435338]
[1642595586034,2.9,3128.0,3127.2,5.39050847]
[1642595586224,2.9,3128.0,3127.3,2.72037441]
[1642595586423,2.9,3128.0,3127.6,1.32311819]
[1642595586621,2.9,3128.0,3127.7,2.72037441]
[1642595586820,2.9,3128.0,3127.8,0.3]
[1642595587223,2.9,3128.0,3127.6,3.22204819]
[1642595587425,2.9,3128.0,3127.7,2.71970734]
[1642595588028,2.9,3128.0,3127.8,5.22527929]
[1642595588225,2.9,3128.0,3127.9,12.41339581]
[1642595588825,2.9,3128.0,3127.9,5.81339581]
[1642595589425,2.9,3128.0,3127.9,9.26320904]
[1642595589681,2.9,3128.0,3127.9,11.06257904]
[1642595589880,1.15159907,3128.0,3127.9,14.52555191]
[1642595590084,1.15159907,3128.0,3127.9,15.27447191]
[1642595590281,1.15159907,3128.0,3127.9,15.70247191]
[1642595590478,0.0040254,3128.1,3127.9,17.29932191]
[1642595590479,2.54e-05,3128.1,3127.9,17.29932191]
[1642595590680,2.54e-05,3128.1,3128.0,28.80735166]
[1642595590881,2.54e-05,3128.1,3128.0,29.83375166]
[1642595591085,0.00173067,3128.1,3128.0,30.13295166]
[1642595591279,0.00173067,3128.1,3128.0,10.99115166]
[1642595591480,0.00173067,3128.1,3128.0,16.42507166]
[1642595591679,0.00173067,3128.1,3128.0,36.32566859]
[1642595591881,0.00173067,3128.1,3128.0,17.31566859]
[1642595592080,0.00173067,3128.1,3128.0,17.61966859]
[1642595592281,0.00173067,3128.1,3128.0,17.61566859]
[1642595592480,0.00173067,3128.1,3128.0,36.32646859]
[1642595592681,0.00173067,3128.1,3128.0,17.61566859]
[1642595593283,0.00173067,3128.1,3128.0,17.61646859]
[1642595593731,0.00173067,3128.1,3128.0,36.32646859]
[1642595593927,0.00173067,3128.1,3128.0,12.76486859]
[1642595594127,0.00173067,3128.1,3128.0,12.76726859]
[1642595594327,0.00173067,3128.1,3128.0,12.76326859]
[1642595594529,0.00173067,3128.1,3128.0,12.76886859]
[1642595594729,0.00173067,3128.1,3128.0,12.76806859]
[1642595594929,0.00173067,3128.1,3128.0,12.76726859]
[1642595595129,0.00173067,3128.1,3128.0,12.76246859]
[1642595595729,0.00173067,3128.1,3128.0,12.76166859]
[1642595595931,0.00173067,3128.1,3128.0,12.76726859]
[1642595596129,0.00173067,3128.1,3128.0,12.76166859]
[1642595596334,0.00173067,3128.1,3128.0,12.76646859]
[1642595596531,0.00173067,3128.1,3128.0,12.46646859]
[1642595596831,0.00173067,3128.1,3128.0,12.46726859]
[1642595597030,0.00173067,3128.1,3128.0,12.46566859]
[1642595597265,0.00173067,3128.1,3128.0,9.61476125]
[1642595597466,0.00173067,3128.1,3128.0,9.45464125]
[1642595598568,0.00173067,3128.1,3128.0,9.32684125]
[1642595600912,0.00173067,3128.1,3128.0,11.74598694]
[1642595601113,0.00173067,3128.1,3128.0,9.02684125]
[1642595601313,0.00173067,3128.1,3128.0,12.72684125]
[1642595601513,0.00173067,3128.1,3128.0,13.31476125]
[1642595602018,0.00173067,3128.1,3128.0,13.43476125]
[1642595602218,0.00173067,3128.1,3128.0,13.31476125]
[1642595602418,0.00173067,3128.1,3128.0,32.14476125]
[1642595602620,0.00173067,3128.1,3128.0,33.69165928]
[1642595602621,3.067e-05,3128.1,3128.0,33.69165928]
[1642595602820,3.067e-05,3128.1,3128.0,33.99725928]
[1642595603019,3.067e-05,3128.1,3128.0,33.99965928]
[1642595603218,3.067e-05,3128.1,3128.0,34.36315928]
[1642595603419,3.067e-05,3128.1,3128.0,34.36555928]
[1642595603923,3.067e-05,3128.1,3128.0,34.36795928]
[1642595604221,3.9375,3129.9,3128.9,1.16619812]
[1642595604425,3.9375,3129.9,3129.1,0.79911]
[1642595604668,0.0096632,3129.8,3129.1,0.79911]
[1642595605063,0.00909477,3129.7,3129.1,0.79911]
[1642595605463,2.14225597,3130.0,3129.1,0.79911]
[1642595605464,0.00852635,3129.6,3129.1,0.79911]
[1642595605867,0.00795793,3129.5,3129.1,0.79911]
[1642595606267,0.0073895,3129.4,3129.1,0.79911]
[1642595606669,2.14225597,3130.0,3129.1,0.79911]
[1642595606670,0.00682108,3129.3,3129.1,0.79911]
[1642595607070,0.00625266,3129.2,3129.1,0.79911]
[1642595608271,0.00625266,3129.2,3129.1,6.55311947]
[1642595608520,0.00625266,3129.2,3129.1,8.01411947]
[1642595608718,0.00625266,3129.2,3129.1,5.61011]
[1642595609321,0.00625266,3129.2,3129.1,8.81011]
[1642595610725,0.00625266,3129.2,3129.1,11.38839277]
[1642595611726,0.00625266,3129.2,3129.1,11.51619277]
[1642595612026,0.00625266,3129.2,3129.1,11.97631277]
[1642595612275,0.00625266,3129.2,3129.1,11.81619277]
[1642595612670,0.00625266,3129.2,3129.1,11.68839277]
[1642595614370,0.00625266,3129.2,3129.1,11.98839277]
[1642595614570,0.00625266,3129.2,3129.1,12.11619277]
[1642595615175,5.266e-05,3129.2,3129.1,31.12471518]
[1642595615371,1.2471,3131.1,3129.6,0.7988]
[1642595615574,0.01214066,3130.9,3129.9,2.3963819]
[1642595615773,0.01214066,3130.9,3129.9,0.79879]
[1642595616217,2.07509894,3130.9,3130.0,1.14872128]
[1642595617016,0.01214066,3130.9,3130.0,1.14872128]
[1642595617216,0.01023162,3131.0,3130.0,1.14872128]
[1642595617422,0.01023162,3131.0,3130.1,2.47262922]
[1642595617618,0.00966319,3130.9,3130.0,1.14872128]
[1642595618117,0.00909477,3130.8,3130.0,1.14872128]
[1642595618517,0.00852635,3130.7,3130.0,3.24759588]
[1642595618718,0.00852635,3130.7,3130.1,2.3818231]
[1642595618921,0.00795792,3130.6,3129.9,2.52030838]
[1642595619121,0.00795792,3130.6,3129.8,4.2873]
[1642595619318,3.56643943,3131.1,3129.8,4.2873]
[1642595619319,0.0073895,3130.5,3129.8,4.2873]
[1642595619782,0.00682108,3130.4,3129.8,4.5873]
[1642595620185,0.00625265,3130.3,3129.8,4.5873]
[1642595620486,0.00625265,3130.3,3129.8,3.4101]
[1642595620686,0.00568423,3130.2,3129.8,3.4101]
[1642595621087,0.00511581,3130.1,3129.8,3.4101]
[1642595621488,0.00454738,3130.0,3129.8,3.4101]
[1642595621889,0.00397896,3129.9,3129.8,3.1101]
[1642595629774,0.00397896,3129.9,3129.5,9.6195379]
[1642595630175,1.0,3130.9,3129.5,9.6195379]
[1642595630176,0.00341054,3129.8,3129.5,9.6195379]
[1642595630575,0.00284211,3129.7,3129.5,11.2173179]
[1642595630774,0.00284211,3129.7,3129.6,7.39894]
[1642595631019,4.02743943,3131.1,3129.6,7.39894]
[1642595631020,4.02743943,3131.1,3129.8,0.79892]
[1642595631218,4.02743943,3131.1,3130.0,0.7989247]
[1642595631219,7.28302447,3131.1,3130.0,0.7989247]
[1642595631417,0.00852635,3130.7,3130.0,0.7989247]
[1642595631719,0.00795792,3130.6,3129.6,8.4978494]
[1642595632117,0.0073895,3130.5,3129.6,8.4978494]
[1642595632520,0.00682108,3130.4,3129.6,8.4978494]
[1642595632924,0.00625265,3130.3,3129.6,8.4978494]
[1642595633321,0.00568423,3130.2,3129.6,8.4978494]
[1642595633720,0.79901,3130.7,3129.6,8.4978494]
[1642595633721,0.00511581,3130.1,3129.6,8.4978494]
[1642595633921,0.00511581,3130.1,3129.6,8.1978494]
[1642595634120,0.00454738,3130.0,3129.6,8.1978494]
[1642595634522,0.00397896,3129.9,3129.6,8.1978494]
[1642595634967,0.00341054,3129.8,3129.6,8.1978494]
[1642595635471,0.00284211,3129.7,3129.6,8.1978494]
[1642595635667,0.00284211,3129.7,3129.6,6.6]
[1642595636067,0.00284211,3129.7,3129.6,7.6]
[1642595637170,0.00284211,3129.7,3129.6,8.39895]
[1642595637978,0.00284211,3129.7,3129.6,8.69895]
[1642595640224,0.00284211,3129.7,3129.6,6.6]
[1642595640822,0.00284211,3129.7,3129.6,7.39896]
[1642595641024,0.00284211,3129.7,3129.6,17.39896]
[1642595641825,0.00284211,3129.7,3129.6,17.69896]
[1642595642773,0.00284211,3129.7,3129.6,17.39896]
[1642595642973,0.00284211,3129.7,3129.6,40.12629492]
[1642595643179,1.1265,3131.3,3130.1,0.7987]
[1642595643374,1.1265,3131.3,3130.4,0.79868]
[1642595643572,0.00795793,3131.1,3130.6,0.79868]
[1642595643973,1.1265,3131.3,3130.6,0.79868]
[1642595643974,0.00738951,3131.0,3130.7,0.7986932]
[1642595644177,0.00738951,3131.0,3130.4,1.42459589]
[1642595644379,0.00682108,3130.9,3130.5,0.79872]
[1642595644577,0.00682108,3130.9,3130.6,0.79862]
[1642595644776,0.00625266,3130.8,3130.6,1.39862]
[1642595644976,0.00625266,3130.8,3130.6,2.39862]
[1642595645275,1.25,3131.8,3130.7,0.7985472]
[1642595645476,1.25,3131.8,3131.0,1.46784786]
[1642595645679,0.01136847,3131.7,3131.0,1.46784786]
[1642595645923,0.01136847,3131.7,3130.9,0.79862]
[1642595646123,0.01080005,3131.6,3130.9,0.79862]
[1642595646324,0.01080005,3131.6,3130.9,1.59724]
[1642595646523,0.01023163,3131.5,3130.9,1.59724]
[1642595646727,0.01023163,3131.5,3130.8,1.5972351]
[1642595647024,0.0096632,3131.4,3130.8,1.5972351]
[1642595647429,0.00909478,3131.3,3130.8,1.5972351]
[1642595647628,0.00909478,3131.3,3130.8,2.5972351]
[1642595647828,0.00852636,3131.2,3130.8,1.5972351]
[1642595648030,0.00852636,3131.2,3130.9,0.798614]
[1642595648233,0.00795793,3131.1,3130.9,0.798614]
[1642595648429,0.00795793,3131.1,3130.8,1.0]
[1642595648629,0.00738951,3131.0,3130.6,1.5973645]
[1642595648928,0.00682108,3130.9,3130.7,0.79858]
[1642595649131,0.00682108,3130.9,3130.7,1.5973055]
[1642595649331,0.00625266,3130.8,3130.7,0.7987255]
[1642595649527,0.00625266,3130.8,3130.7,6.5]
[1642595649770,0.00625266,3130.8,3130.7,6.00580627]
[1642595650174,0.00625266,3130.8,3130.7,6.80446447]
[1642595650972,0.00625266,3130.8,3130.7,8.56458447]
[1642595651173,0.00625266,3130.8,3130.7,10.21606527]